Cogmind - Beta 16 @@@ ROGUE MODE // 2025.11.03 @ 10:43:36 Player: Scringis Result: Destroyed by G-47 Trooper with Particle Gun Performance ------------- Evolutions (2) 1000 Regions Visited (3) 600 Robots Destroyed (67) 335 Value Destroyed (2034) 2034 Prototype IDs (2) 40 Alien Tech Used (0) 0 Bonus (0) 0 TOTAL SCORE: 4009 Bonus ------- None Cogmind --------- Core Integrity 0/550 Matter 218/300 Energy 60/100 System Corruption 1% Temperature Warning (316) Movement Walking (120) Location -8/Materials Parts ------- > --- POWER (1) -------- (None) > --- PROPULSION (2) --- Improved Carbon-fiber Leg > --- UTILITY (4) ------ Improved Heat Sink Visual Processing Unit Improved Targeting Computer > --- WEAPON (4) ------- Grenade Launcher > --- INVENTORY (5) ---- Improved Ion Engine Light Nuclear Core Aluminum Leg Peak State ------------ > --- POWER ------------ Improved Deuterium Engine > --- PROPULSION ------- Aluminum Leg Improved Carbon-fiber Leg > --- UTILITY ---------- Improved Heat Sink Large Storage Unit Visual Processing Unit Improved Targeting Computer > --- WEAPON ----------- Lightning Gun Pulse Rifle Pulse Rifle Gauss Rifle > --- INVENTORY -------- Improved Ion Engine Improved Ion Engine Hardened Light Armor Plating Grenade Launcher [Rating: 31] Favorites ----------- Power Ion Engine Engine Ion Engine Propulsion Light Treads Treads Light Treads Leg Aluminum Leg Utility Visual Processing Unit Device Heat Sink Storage Large Storage Unit Processor Visual Processing Unit Weapon Improved Light Cannon Energy Gun Medium Laser Energy Cannon EM Pulse Cannon Ballistic Gun Assault Rifle Ballistic Cannon Improved Light Cannon Launcher Grenade Launcher Build | -11 -10 -9 -8 ------- Run | Yrd Mat Mat Mat Slots Evolved 4 | . . 2 2 Power . | . . . . Propulsion . | . . . . Utility 2 | . . . 2 Weapon 2 | . . 2 . Parts Attached 41 | 5 7 10 19 Power 7 | 1 . 3 3 Engine 7 | 1 . 3 3 Core . | . . . . Reactor . | . . . . Propulsion 9 | 2 1 2 4 Treads 7 | 2 1 2 2 Leg 2 | . . . 2 Wheel . | . . . . Hover . | . . . . Flight . | . . . . Utility 7 | 1 2 1 3 Device 3 | . 1 . 2 Storage 2 | 1 . 1 . Processor 2 | . 1 . 1 Hackware . | . . . . Protection . | . . . . Artifact . | . . . . Weapon 18 | 1 4 4 9 Energy Gun 10 | 1 2 2 5 Energy Cannon 1 | . . . 1 Ballistic Gun 3 | . 1 1 1 Ballistic Cannon 3 | . 1 1 1 Launcher 1 | . . . 1 Special Weapon . | . . . . Impact Weapon . | . . . . Slashing Weapon . | . . . . Piercing Weapon . | . . . . Special Melee Weapon . | . . . . Unidentified Prototypes 2 | . . 2 . Corrupted Parts 1 | . . . 1 System Corruption 1 | . . . 1 Parts Lost 28 | . 3 4 21 Power 5 | . . 1 4 Propulsion 7 | . 2 . 5 Utility 2 | . . . 2 Weapon 14 | . 1 3 10 Highest Loss Streak 8 | . 2 2 8 To Critical Strikes . | . . . . Average Backups 4 | . 3 4 6 Power 1 | . 1 1 2 Propulsion . | . . . . Utility 1 | . . 2 1 Weapon 1 | . 1 . 1 Tool/Special . | . . . . Unused Backups 3 | . . . 3 Power 1 | . . . 1 Propulsion 1 | . . . 1 Utility 1 | . . . 1 Weapon . | . . . . Tool/Special . | . . . . Average Slot Usage (%) 82 | . 86 81 80 Engine 9 | . 14 7 7 Treads 17 | . 25 15 12 Device 2 | . 5 . 2 Storage 11 | . 14 11 8 Processor 11 | . 4 11 18 Energy Gun 11 | . 14 12 8 Energy Cannon 2 | . . . 6 Ballistic Gun 5 | . 3 7 6 Ballistic Cannon 9 | . 4 16 7 Peak Build Rating 31 | 5 9 14 31 Average Rating 11 | 3 6 10 18 On Entrance 6 | . 5 8 14 Avg Prop Armor Cover (%) 8 | . . . 8 Naked Turns . | . . . . Heaviest Build 48 | 12 16 39 48 Greatest Support 40 | 40 40 40 40 Greatest Overweight (x) 8 | . . 1 8 Average Overweight (x) . | . . . . Largest Inventory Capacity 15 | 8 8 15 15 Average Capacity 11 | 6 8 11 14 Most Carried 10 | 3 6 7 10 Average Carried 4 | 1 3 4 6 Final Capacity 15 | 8 8 15 5 Final Carried 7 | 2 5 7 3 Class Distribution -------------------- 42% | Mutant 29% | Skirmisher 25% | Gunner Dominant Class ---------------- Mutant | -10/Materials Skirmisher | -9/Materials Gunner | -8/Materials Resources | -11 -10 -9 -8 ----------- Run | Yrd Mat Mat Mat Matter Collected 1130 | 134 235 361 400 Remotely . | . . . . Salvage Created 2101 | . 528 539 1034 Parts 128 | . 37 38 53 Haulers Intercepted 1 | . . 1 . Recyclers Shooed . | . . . . Parts Field Recycled . | . . . . Retrieved Matter . | . . . . Parts Self-Destructed . | . . . . Prevented . | . . . . Parts Restored . | . . . . Kills | -11 -10 -9 -8 ------- Run | Yrd Mat Mat Mat Combat Hostiles Destroyed 54 | . 14 17 23 Guns 25 | . 11 8 6 Cannons 20 | . 3 6 11 AOE 8 | . . 3 5 Classes Destroyed 10 | . 4 3 3 Builder 5 | . . 2 3 Tunneler 1 | . . . 1 Hauler 1 | . . 1 . Recycler 1 | . 1 . . Operator 3 | . 2 1 . Watcher 2 | . . . 2 Swarmer 16 | . 6 7 3 Grunt 27 | . 8 6 13 Sentry 7 | . . 4 3 Specialist 4 | . . . 4 Best Kill Streak 7 | . 3 7 5 Combat Bots Only 6 | . 3 6 5 Max Kills in Single Turn 3 | . 1 2 3 Gunslinging . | . . . . Exploded 2 | . . 2 2 Melee . | . . . . Uniques/NPCs Destroyed . | . . . . Combat | -11 -10 -9 -8 -------- Run | Yrd Mat Mat Mat Hostile Shots Fired 299 | . 75 58 166 Missed 73 | . 17 19 37 Hits 226 | . 58 39 129 Projectile 226 | . 58 39 129 Critical Strikes 10 | . . 2 8 Damage Taken 3575 | . 590 797 2188 Core 859 | . 82 221 556 Absorbed by Shields . | . . . . Core Remaining (%) 70 | 100 67 44 . Volleys Fired 160 | . 61 40 59 Largest 4 | . 2 4 4 Hottest 213 | . 73 143 213 Shots Fired 358 | . 87 123 148 Gun 237 | . 70 77 90 Cannon 119 | . 17 46 56 Launcher 2 | . . . 2 Special . | . . . . Kinetic 158 | . 26 70 62 Thermal 93 | . 13 40 40 Explosive 2 | . . . 2 Electromagnetic 105 | . 48 13 44 Robot Hit Streak 18 | . 6 9 18 Robot Miss Streak 4 | . 4 3 4 Penetration Max . | . . . . Secondary Targets 2 | . . . 2 Max Gunslinging Chain 1 | . . . 1 Shots Hit Robots 228 | . 48 75 105 Core Hits 111 | . 22 35 54 Critical Kills . | . . . . Critical Parts Destroyed . | . . . . Critical Strikes 7 | . 1 2 4 Burn 3 | . . 1 2 Blast 3 | . . 1 2 Corrupt 1 | . 1 . . Melee Attacks . | . . . . Impact . | . . . . Slashing . | . . . . Piercing . | . . . . Sneak Attacks . | . . . . Combat Hostiles . | . . . . Follow-up Attacks . | . . . . Damage Inflicted 4816 | . 753 1446 2617 Guns 2181 | . 503 547 1131 Cannons 1833 | . 206 616 1011 Explosions 794 | . 41 281 472 Melee . | . . . . Ramming 8 | . 3 2 3 Kinetic 1863 | . 236 742 885 Thermal 1288 | . 127 353 808 Explosive 492 | . . 229 263 Electromagnetic 1165 | . 387 120 658 Impact . | . . . . Slashing . | . . . . Piercing . | . . . . Highest Corruption 1 | . . . 1 Average Corruption 1 | . . . 1 Corruption Purged . | . . . . Corruption Blocked . | . . . . Overload Shots . | . . . . Overflow Damage 38 | . 8 11 19 Projectiles 24 | . 8 . 16 Explosions 14 | . . 11 3 Melee . | . . . . Knockbacks 7 | . . 3 4 Impact . | . . . . Kinetic 7 | . . 3 4 Secondary . | . . . . Self-Inflicted Damage 327 | . . 301 26 Shots 6 | . . 4 2 Rammed 4 | . 2 1 1 Targets Rammed 4 | . 2 1 1 Kicked . | . . . . Crushed . | . . . . Highest Temperature 485 | . 150 465 485 Average Temperature 143 | . 52 150 182 Received Heat Transfer 1335 | . 228 243 864 Effects 24 | . . 2 22 Shutdowns 6 | . . 1 5 Energy Bleed 2 | . . . 2 Interference 3 | . . . 3 Matter Decay 3 | . . 1 2 Short Circuit 1 | . . . 1 Damage (minor) 2 | . . . 2 Damage (major) 7 | . . . 7 Siege Activations . | . . . . Martial Activations . | . . . . Shielding Activations . | . . . . Robots Disrupted . | . . . . Combat Hostiles . | . . . . Robots Corrupted . | . . . . Combat Hostiles . | . . . . Parts Fried 2 | . 1 . 1 Impact Corruptions . | . . . . Robots Melted 1 | . . . 1 Combat Hostiles 1 | . . . 1 Parts Melted 6 | . 1 1 4 Heat Transferred 3014 | . 309 1012 1693 Parts Sabotaged . | . . . . Parts Stolen . | . . . . Parts Stripped . | . . . . Power Chain Reactions 4 | . 1 1 2 Alert | -11 -10 -9 -8 ------- Run | Yrd Mat Mat Mat Maximum Alert Level 2 | . . 2 1 Low Security (%) 72 | 100 100 39 74 Level 1 27 | . . 60 25 Level 2 . | . . . . Level 3 . | . . . . Level 4 . | . . . . Level 5 . | . . . . High Security . | . . . . Max Security . | . . . . Peak Influence 404 | . 163 404 254 Initial 132 | . . 55 132 Average 144 | . 77 238 136 Influence Increases 1780 | . 446 634 700 Destroy 0b10 Robot/C 1080 | . 280 340 460 Destroy 0b10 Robot/NC 65 | . 15 20 30 Destroy Leader 256 | . 60 82 114 Successful Hack 2 | . . 2 . Disable Machine 90 | . 30 60 . Destroy Structure 107 | . 1 85 21 Lose Combat Pursuer 180 | . 60 45 75 Influence Decreases 1526 | . 315 450 761 Entered New Map 259 | . . 76 183 Time Decay 987 | . 285 334 368 Lost Part 280 | . 30 40 210 Squads Dispatched 11 | . 3 1 7 Investigation 2 | . . . 2 Extermination . | . . . . Reinforcement 9 | . 3 1 5 Assault . | . . . . Garrison . | . . . . Intercept . | . . . . Searches Triggered . | . . . . Construction Impeded . | . . . . Haulers Reinforced . | . . . . Active Scanning Responses . | . . . . Cargo Convoy Interrupts . | . . . . Stealth | -11 -10 -9 -8 --------- Run | Yrd Mat Mat Mat Distress Signals 7 | . 1 5 1 Communications Jammed . | . . . . Distress Signals . | . . . . Times Spotted 92 | . 26 31 35 Peak Tracking Total 7 | . 5 6 7 Tactical Retreats 6 | . 2 2 2 Traps | -11 -10 -9 -8 ------- Run | Yrd Mat Mat Mat Traps Triggered 1 | . . . 1 Indirectly . | . . . . Trap Hack Attempts . | . . . . Triggered . | . . . . Disarmed . | . . . . Reprogrammed . | . . . . Reused . | . . . . Traps Extracted . | . . . . Installed . | . . . . Triggered . | . . . . Machines | -11 -10 -9 -8 ---------- Run | Yrd Mat Mat Mat Machines Disabled 6 | . 2 4 . Max in Single Turn 2 | . 1 2 . Machines Repaired . | . . . . Machines Dismantled . | . . . . Machines Sabotaged . | . . . . Overloaded Fab Kills . | . . . . Hacking | -11 -10 -9 -8 --------- Run | Yrd Mat Mat Mat Machines Accessed 1 | . . 1 . Terminals . | . . . . Fabricators . | . . . . Repair Stations . | . . . . Recycling Units . | . . . . Scanalyzers 1 | . . 1 . Garrison Access . | . . . . Total Hacks 3 | . . 3 . Successful 3 | . . 3 . Failed . | . . . . Catastrophic . | . . . . Database Lockouts . | . . . . Manual . | . . . . Terminals . | . . . . Fabricators . | . . . . Repair Stations . | . . . . Recycling Units . | . . . . Scanalyzers 3 | . . 3 . Garrison Access . | . . . . Terminal Hacks . | . . . . Fabricator Hacks . | . . . . Repair Station Hacks . | . . . . Recycling Unit Hacks . | . . . . Scanalyzer 3 | . . 3 . Retrieve Study 3 | . . 3 . Garrison Access Hacks . | . . . . Unauthorized Hacks . | . . . . Terminals . | . . . . Fabricators . | . . . . Repair Stations . | . . . . Recycling Units . | . . . . Scanalyzers . | . . . . Garrison Access . | . . . . Data Cores Recovered 1 | . 1 . . Used . | . . . . Hacking Detections . | . . . . Full Trace Events . | . . . . Feedback Events . | . . . . Feedback Blocked . | . . . . Robot Schematics Acquired . | . . . . Robots Built . | . . . . Authchips . | . . . . Time . | . . . . Total Robot Build Rating . | . . . . Part Schematics Acquired . | . . . . Parts Built . | . . . . Authchips . | . . . . Time . | . . . . Total Part Build Rating . | . . . . Part Studies Acquired 3 | . . 3 . Parts Repaired . | . . . . Time . | . . . . Parts Recycled . | . . . . Recycled Matter . | . . . . Retrieved Matter . | . . . . Retrieved Components . | . . . . Parts Scanalyzed . | . . . . Part Schematics Acquired . | . . . . Parts Damaged . | . . . . Bothacking | -11 -10 -9 -8 ------------ Run | Yrd Mat Mat Mat Used RIF Installer . | . . . . Robots Hacked . | . . . . Non-combat . | . . . . Combat . | . . . . Robot Hacks Applied . | . . . . Relay Couplers Released . | . . . . Fabnet Peak Effective % . | . . . . Robots Rewired . | . . . . Allies Hacked . | . . . . Hacks Repelled . | . . . . Allies | -11 -10 -9 -8 -------- Run | Yrd Mat Mat Mat Total Allies . | . . . . Largest Group . | . . . . Highest-Rated Group . | . . . . Highest-Rated Ally . | . . . . Total Orders . | . . . . Ally Attacks . | . . . . Total Damage . | . . . . Kills . | . . . . Allies Corrupted . | . . . . Allies Melted . | . . . . Intel | -11 -10 -9 -8 ------- Run | Yrd Mat Mat Mat Active Infowar (turns) 1749 | . 244 740 765 Optics 1749 | . 244 740 765 Sensors 83 | . . . 83 Robot Analysis Total . | . . . . Derelict Logs Recovered . | . . . . Drone Launches . | . . . . Drone Recoveries . | . . . . Exploration | -11 -10 -9 -8 ------------- Run | Yrd Mat Mat Mat Turns Passed 2450 | 63 788 740 859 Spaces Moved 993 | 39 366 310 278 Core 19 | 9 . . 10 Treads 944 | 30 366 310 238 Legs 30 | . . . 30 Wheels . | . . . . Hover . | . . . . Flight . | . . . . Fastest Speed 50 | 50 160 160 160 Average Speed 176 | 134 160 173 208 Slowest Speed 450 | 160 160 240 450 Overloaded Moves . | . . . . Propulsion Burnouts . | . . . . Robots Hopped . | . . . . Potential Cave-ins . | . . . . Cave-ins Triggered . | . . . . Exploration Rate (%) 34 | 4 77 31 26 Regions Visited 3 Branch Regions . Pre-discovered Areas . | . . . . Known Exits Taken . | . . . . Unknown Exits Taken 3 | 1 1 1 . Scrap Searched . | . . . . Spaces Dug . | . . . . Terrain Destroyed 109 | . 1 84 24 Melee . | . . . . Projectile 8 | . 1 2 5 AOE 101 | . . 82 19 Terrain Rammed . | . . . . Walls Destroyed . | . . . . Machines Disabled . | . . . . Actions | -11 -10 -9 -8 --------- Run | Yrd Mat Mat Mat Total 1406 | 50 482 428 446 Wait 148 | . 39 44 65 Move 990 | 38 365 309 278 Hop . | . . . . Pick Up 47 | 7 7 15 18 Fast Attach . | . . . . Attach 39 | 5 5 10 19 Detach 1 | . 1 . . Swap 6 | . 2 3 1 Drop 11 | . . 6 5 Fire 160 | . 61 40 59 Melee . | . . . . Ram . | . . . . Kick . | . . . . Crush 4 | . 2 1 1 Escape Stasis . | . . . . Rewire . | . . . . Trap . | . . . . Miscellaneous . | . . . . Route ------- -11/Scrapyard -10/Materials (discovered 5 exits: *Mat x3 / [*Min] / [*Sub]) -9/Materials -8/Materials History --------- Turn | Location | Event 5 | -11/Scrapyard | Discovered new exit (range 16) 64 | -11/Scrapyard | Entered Materials 151 | -10/Materials | Discovered new exit (range 16) 184 | -10/Materials | Discovered new exit (range 10) 317 | -10/Materials | Build established: Mutant 477 | -10/Materials | Discovered new exit (range 15) 631 | -10/Materials | Discovered new exit (range 15) 817 | -10/Materials | Discovered new exit (range 6) 852 | -10/Materials | Entered another Materials area 852 | -9/Materials | Evolved 2 slots: Weapon x2 1169 | -9/Materials | Core integrity fell below 50% 1493 | -9/Materials | Discovered new exit (range 15) 1540 | -9/Materials | Build established: Skirmisher 1592 | -9/Materials | Entered another Materials area 1592 | -8/Materials | Evolved 2 slots: Utility x2 1891 | -8/Materials | Build established: Gunner 2090 | -8/Materials | Lost 3 parts (1n1u1w) 2278 | -8/Materials | Lost 8 parts (2p2n4w) 2355 | -8/Materials | Core integrity fell below 50% 2443 | -8/Materials | Core integrity fell below 20% 2451 | -8/Materials | Destroyed by G-47 Trooper with Particle Gun Last Messages --------------- shutdown. 02438_ Imp. Deuterium Engine destroyed. 02438_ Lightning Gun destroyed. 02439_ Overheating: Matter decay (-57). 02440_ U-05 Engineer builds a Wall. 02444_ Pulse Rifle destroyed. 02446_ U-05 Engineer builds a Wall. 02446_ Pulse Rifle destroyed. 02447_ Overheating: Imp. Targeting Computer damaged (-6). 02447_ Overheating: Visual Processing Unit damaged (-15). 02447_ Overheating: Imp. Ion Engine damaged (-19). 02447_ Overheating: Imp. Heat Sink damaged (-17). 02448_ G-47 Trooper destroyed. 02448_ U-05 Engineer destroyed. 02448_ Imp. Ion Engine destroyed. 02450_ G-47 Trooper destroyed. Map ----- +----------------------------------------------------+ | | | | | | | | | | | | | | | | | ?????????????????????????????????????????????????? | | ?????????????????????????????????????????????????? | | ?????????????????????????????????????????????????? | | ?????????????????????????????????????????????????? | | ?????????????????????????????????????????????????? | | ?????????????????????????????????????????????????? | | ?????????????????????????????????????????????????? | | ?????????????????????#######?????????????????????? | | ???????????????#######! #?????????????????????? | | ???????????????? [ #?????????????????????? | | ????????????????? * #?????????????????????? | | ?????????????????? =%% #?????????????????????? | | ???????????????????# #?????????????????????? | | ????????????????????# %= ?????????????????????? | | ????????????????????# H ??????????????????????? | | ????????????????????? g #?????????????????????? | | ??????????????????????# ##?????????????????????? | | ??????????????????????# @##?????????????????????? | | ??????????????????????#% %#??????????????????????? | | ????????????????????###%[*#??????????????????????? | | ????????????????????# #%% ##?????????????????????? | | ????????????????????#[#%!=##?????????????????????? | | ??????????????????#####![!##?????????????????????? | | ??????????????????#!! =%%[###+####???????????????? | | ??????????????????#!!!*!!% #???????????????? | | ??????????????????#[ [!!! %! #???????????????? | | ??????????????????#] % = #???????????????? | | ??????????????????#] ## ##" # #???????????????? | | ??????????????????#]] ## #?"T# #???????????????? | | ??????????????????###### #?### #???????????????? | | ???????????????????????# #???# #???????????????? | | ???????????????????????# #???# ???????????????? | | ???????????????????????# #???# ???????????????? | | ???????????????????????#%#???# ???????????????? | | ???????????????????????# #???# #???????????????? | | ???????????????????????# #???#^ #???????????????? | | ???????????????????????# #???#^ #???????????????? | | ???????????????????????# #???# #???????????????? | | ?????????????????????###+##### #???????????????? | | ?????????????????????# # #???????????????? | | ????#######??????????# # #???????????????? | | ????# #??????????# !!! # #???????????????? | +----------------------------------------------------+ Best States ------------- Heat Dissipation 45 Energy Generation 16 Energy Capacity 290 Matter Stores 300 Matter Capacity 300 Sight Range 18 Robot Scan Range 15 Terrain Scan Density 10 Evasion (%) 40 Targeting Accuracy 6 Recoil Reduction 2 Item Schematics ----------------- None Robot Schematics ------------------ None Fabricated ------------ Nothing Repaired ---------- Nothing Studied --------- Hvy. EM Pulse Gun | -9/Materials | Hacked Imp. Light Cannon | -9/Materials | Hacked Lgt. Ion Engine | -9/Materials | Hacked Alien Tech Used ----------------- None Achievements -------------- None Challenges ------------ None Game ------ Seed MetafiberMetafieldDetector Manual? 0 Play Time 00:15:29 Cumulative 39.0 hours Start 2025.11.02 @ 19:05:04 End 2025.11.03 @ 10:43:36 Sessions 3 Manual Loads 0 Difficulty Rogue Special Mode None Game No. 112 Rogue 112 Adventurer 0 Explorer 0 Win Type - Total 0 Types 0/0/0/0/0/0/0/0/0/0 Lore% 23 Gallery% 28 Achievement% 22 Wizard Run 0 Options --------- Layout 1 ASCII 0 Keyboard 0 Movement Numpad Keybinds 0 Fullscreen 2 Font 24/Smallcaps Map View 50x35 Zoom Use 0% Tactical HUD 1 Map Filters NONE Filters NONE Steam 1 RUN: 2de1f20d-8dec-4a5d-9cf4-ca7ff13716aa